bitfinex-derivatives/quotes_SOLF0:USTF0_20251119
["timestamp","ask_amount","ask_price","bid_price","bid_amount"]
[1763560924922,0.04887439,136.81,136.78,3.23]
[1763560925626,0.04887439,136.81,136.79,3.23]
[1763560926022,3.23887439,136.81,136.77,3.23]
[1763560928529,0.04887439,136.81,136.79,3.06]
[1763560929627,3.11,136.8,136.73,3.06]
[1763560929926,3.16255157,136.78,136.73,3.06]
[1763560930519,0.05255157,136.78,136.73,3.06]
[1763560930718,0.05255157,136.78,136.73,5.3379125]
[1763560930925,0.05255157,136.78,136.76,3.06]
[1763560931324,2.2779125,136.86,136.78,3.06]
[1763560931536,3.11,136.87,136.8,3.06]
[1763560932029,3.11,136.87,136.81,2.2779125]
[1763560932230,0.05613714,136.85,136.83,0.05037545]
[1763560932620,0.05613714,136.85,136.83,2.32828795]
[1763560932820,0.05613714,136.85,136.83,0.05037545]
[1763560933230,3.16613714,136.85,136.83,0.05037545]
[1763560934028,0.05613714,136.85,136.83,0.05037545]
[1763560934230,0.05613714,136.85,136.83,3.11037545]
[1763560934824,0.05613714,136.85,136.83,0.05037545]
[1763560935031,3.16613714,136.85,136.83,0.05037545]
[1763560936843,0.05613714,136.85,136.83,0.05037545]
[1763560938041,0.05613714,136.85,136.83,3.11037545]
[1763560938242,0.05613714,136.85,136.83,0.05037545]
[1763560939543,3.16613714,136.85,136.83,0.05037545]
[1763560940638,9.74773714,136.85,136.83,0.05037545]
[1763560940839,3.11,136.84,136.78,9.6445]
[1763560941245,9.6923,136.84,136.78,3.06]
[1763560941738,9.6923,136.84,136.78,9.6446]
[1763560942339,9.6923,136.84,136.78,3.06]
[1763560943348,9.6923,136.84,136.78,9.6446]
[1763560943733,9.6924,136.83,136.79,3.06]
[1763560944536,3.11,136.83,136.79,3.06]
[1763560945056,9.6925,136.83,136.79,3.06]
[1763560945352,3.26,136.82,136.76,3.1]
[1763560945548,3.26,136.78,136.7,3.1]
[1763560945741,0.05234717,136.75,136.7,3.1]
[1763560945941,3.26,136.74,136.7,3.1]
[1763560946356,0.05234717,136.75,136.7,3.1]
[1763560946952,3.31234717,136.75,136.67,15.48]
[1763560947358,3.31234717,136.75,136.67,18.58]
[1763560947562,3.31234717,136.75,136.68,3.1]
[1763560948864,0.05234717,136.75,136.69,3.1]
[1763560949051,0.05234717,136.75,136.7,3.1]
[1763560949366,0.05234717,136.75,136.7,105.5883]
[1763560949556,0.05234717,136.75,136.73,3.1]
[1763560949870,3.26,136.81,136.75,3.1]
[1763560950161,113.3533,136.86,136.77,3.1]
[1763560950162,3.26,136.84,136.77,3.1]
[1763560950662,0.05475062,136.82,136.79,3.15613558]
[1763560951569,0.05475062,136.82,136.81,3.1]
[1763560951969,0.05475062,136.82,136.8,3.1]
[1763560952561,0.05475062,136.82,136.79,3.15613558]
[1763560953062,3.31475062,136.82,136.79,0.05613558]
[1763560954069,0.05475062,136.82,136.79,3.15613558]
[1763560954365,3.31475062,136.82,136.79,0.05613558]
[1763560955163,3.31475062,136.82,136.74,15.48]
[1763560955364,3.26,136.8,136.72,3.1]
[1763560955868,6.5845,136.79,136.72,9.6873]
[1763560956071,9.8445,136.79,136.72,9.6873]
[1763560956373,3.31553175,136.77,136.73,3.1]
[1763560956864,0.05553175,136.77,136.73,3.1]
[1763560957665,0.05553175,136.77,136.74,3.16]
[1763560958676,3.39553175,136.77,136.72,3.16]
[1763560958973,0.05553175,136.77,136.72,3.16]
[1763560959278,3.39553175,136.77,136.73,3.16]
[1763560959665,6.5863,136.75,136.67,6.5897]
[1763560959876,6.5863,136.75,136.68,3.16]
[1763560959877,0.04896619,136.73,136.68,3.16]
[1763560960576,3.38896619,136.73,136.68,3.16]
[1763560960778,0.04896619,136.73,136.68,3.16]
[1763560961177,0.04896619,136.73,136.69,3.16]
[1763560961578,0.04896619,136.73,136.71,3.16]
[1763560962174,0.04896619,136.73,136.71,9.7479]
[1763560962377,0.04896619,136.73,136.72,3.16]
[1763560962882,5.62328631,136.82,136.74,3.16]
[1763560963079,8.66078057,136.81,136.76,5.44328631]
[1763560963378,9.94148125,136.84,136.78,12.02778631]
[1763560963680,5.32682361,136.83,136.79,3.16]
[1763560963881,3.34,136.83,136.79,3.16]
[1763560964081,0.0467846,136.82,136.8,0.05280801]
[1763560964677,9.9697846,136.82,136.8,0.05280801]
[1763560964877,8.66679557,136.81,136.8,0.05280801]
[1763560965084,8.66679557,136.81,136.73,3.16]
[1763560965272,3.34,136.83,136.76,3.16]
[1763560965475,5.33270272,136.84,136.76,3.16]
[1763560965673,8.67270272,136.83,136.76,3.16]
[1763560965879,3.34,136.81,136.72,3.16]
[1763560966178,0.04729454,136.78,136.72,3.16]
[1763560966771,0.04729454,136.78,136.75,3.16]
[1763560968076,0.04729454,136.78,136.76,3.16]
[1763560968779,3.34,136.84,136.77,3.16]
[1763560968982,3.34,136.83,136.77,3.16]
[1763560969484,8.68632852,136.83,136.77,3.16]
[1763560969675,8.68632852,136.82,136.77,3.16]
[1763560969986,15.32003311,136.81,136.79,0.04904012]
[1763560970183,5.34632852,136.8,136.79,0.04904012]
[1763560970874,3.34,136.8,136.79,0.04904012]
[1763560971384,3.34,136.8,136.72,3.16]
[1763560971581,8.68632852,136.8,136.72,3.16]
[1763560971781,3.34,136.76,136.7,3.16]
[1763560972486,3.39003966,136.74,136.7,3.16]
[1763560972876,6.5872,136.73,136.7,3.16]
[1763560973278,3.34,136.73,136.67,3.16]
[1763560973785,5.39074439,136.74,136.67,3.16]
[1763560973786,9.9277,136.72,136.67,3.16]
[1763560973984,3.34,136.71,136.65,3.16]
[1763560974180,3.3878315,136.71,136.65,3.16]
[1763560974387,0.0478315,136.71,136.65,3.16]
[1763560975887,0.0478315,136.71,136.67,3.16]
[1763560976093,0.0478315,136.71,136.67,9.7498]
[1763560976393,0.0478315,136.71,136.68,3.16]
[1763560976583,0.0478315,136.71,136.68,9.7493]
[1763560976783,0.0478315,136.71,136.68,3.16]
[1763560977188,0.0478315,136.71,136.69,3.16]
[1763560978595,0.0478315,136.71,136.67,3.16]
[1763560980185,3.34,136.7,136.66,9.7502]
[1763560980379,3.34,136.7,136.64,6.5912]
[1763560980594,9.9287,136.7,136.64,9.7512]
[1763560981382,0.0478315,136.71,136.64,3.16]
[1763560981582,0.0478315,136.71,136.64,105.6898]
[1763560981787,0.0478315,136.71,136.7,3.16]
[1763560981991,9.9249,136.78,136.7,3.16]
[1763560981992,3.34,136.78,136.7,3.16]
[1763560982291,3.34,136.78,136.73,3.16]
[1763560982594,5.29951262,136.79,136.73,3.16]
[1763560982794,3.34,136.81,136.73,3.16]
[1763560982986,3.39097845,136.78,136.76,0.0478315]
[1763560983186,0.05097845,136.78,136.76,0.0478315]
[1763560983582,0.05097845,136.78,136.76,3.2078315]
[1763560983987,0.05097845,136.78,136.76,9.7933315]
[1763560984187,0.05097845,136.78,136.77,3.16]
[1763560985998,0.05097845,136.78,136.76,0.0478315]
[1763560987796,3.11097845,136.78,136.76,0.0478315]
[1763560988907,3.06,136.77,136.76,0.0478315]
[1763560989794,0.05097845,136.78,136.76,0.0478315]
[1763560991503,0.05097845,136.78,136.76,3.2478315]
[1763560991890,3.06,136.85,136.76,3.2478315]
[1763560992097,3.06,136.85,136.78,3.2]
[1763560992302,3.06,136.88,136.8,3.2]
[1763560992502,9.6402,136.88,136.8,3.2]
[1763560992898,9.6402,136.88,136.81,3.2]
[1763560993110,3.10933176,136.86,136.83,0.05564034]
[1763560993405,3.06,136.85,136.83,0.05564034]
[1763560994108,9.6414,136.85,136.83,0.05564034]
[1763560995902,3.06,136.84,136.83,0.05564034]
[1763560997003,3.06,136.81,136.74,3.2]
[1763560997209,8.3696003,136.81,136.74,3.2]
[1763560997505,3.06,136.8,136.74,3.2]
[1763560997698,8.37031639,136.8,136.74,3.2]
[1763560997900,3.06,136.8,136.74,3.2]
[1763560998096,0.04867012,136.78,136.76,0.04316961]
[1763560999006,6.63347012,136.78,136.76,0.04316961]
[1763560999201,0.04867012,136.78,136.76,0.04316961]
[1763560999606,6.63347012,136.78,136.76,0.04316961]
[1763561000205,9.69347012,136.78,136.76,0.04316961]
[1763561000912,3.06,136.77,136.76,0.04316961]
[1763561001609,9.6459,136.76,136.71,3.2]
[1763561001803,3.06,136.75,136.71,3.2]
[1763561002409,9.6463,136.75,136.71,3.2]
[1763561002710,0.04629384,136.74,136.71,3.2]
[1763561005619,0.04629384,136.74,136.73,9.6471]
[1763561006010,8.56969901,136.79,136.73,3.06]
[1763561006219,6.5848,136.78,136.75,3.06]
[1763561006610,9.8443,136.79,136.75,3.06]
[1763561007118,0.05394754,136.78,136.76,0.04629384]
[1763561007714,3.31394754,136.78,136.76,0.04629384]
[1763561007917,0.05394754,136.78,136.76,0.04629384]
[1763561009724,9.89874754,136.78,136.76,0.04629384]
[1763561009909,3.31394754,136.78,136.76,0.04629384]
[1763561010715,0.05394754,136.78,136.76,3.10629384]
[1763561011212,6.5823,136.83,136.77,3.06]
[1763561011813,9.8437,136.8,136.73,3.06]
[1763561012019,18.74,136.84,136.73,3.06]
[1763561012219,0.04655857,136.8,136.77,3.11246328]
[1763561013721,13.15937674,136.9,136.77,3.11246328]
[1763561013722,3.26,136.86,136.77,3.11246328]
[1763561013922,5.31076681,136.88,136.8,3.06]
[1763561014116,6.5793,136.9,136.85,9.6412]
[1763561014327,6.5793,136.9,136.86,3.06]
[1763561014526,105.5863,136.92,136.86,3.06]
[1763561014716,6.5793,136.9,136.86,3.06]
[1763561014920,9.89149752,136.9,136.88,0.04712052]
[1763561015120,3.31219752,136.9,136.88,0.05299121]
[1763561015320,9.8404,136.87,136.83,3.06]
[1763561015927,3.26,136.9,136.83,3.06]
[1763561016230,3.26,136.87,136.85,0.04887328]
[1763561016428,3.26,136.84,136.8,3.06]
[1763561016630,3.26,136.84,136.76,3.06]
[1763561017030,6.5833,136.81,136.77,3.06]
[1763561017433,0.04710765,136.8,136.78,0.04493546]
[1763561017926,0.04710765,136.8,136.78,3.20493546]
[1763561019030,0.04710765,136.8,136.78,0.04493546]
[1763561020629,3.12710765,136.8,136.78,0.04493546]
[1763561020825,9.71090765,136.8,136.78,0.04493546]
[1763561021031,3.08,136.79,136.72,3.16]
[1763561021723,3.08,136.82,136.72,3.16]
[1763561022125,0.0552502,136.78,136.76,3.16]
[1763561022940,0.0552502,136.78,136.76,9.7455]
[1763561023143,0.0552502,136.78,136.73,3.16]
[1763561023144,3.1352502,136.78,136.73,3.16]
[1763561023641,0.0552502,136.78,136.73,3.16]
[1763561024529,0.0552502,136.78,136.74,3.16]
[1763561024727,0.0552502,136.78,136.77,3.16]
[1763561026129,6.5826,136.83,136.77,3.16]
[1763561026530,3.08,136.84,136.77,3.16]
[1763561026927,9.6628,136.82,136.77,3.16]
[1763561027236,0.05191455,136.81,136.78,0.05508938]
[1763561027835,0.05191455,136.81,136.78,3.21508938]
[1763561028136,9.71531455,136.81,136.78,0.05508938]
[1763561028938,6.63531455,136.81,136.78,3.21508938]
[1763561032143,9.71531455,136.81,136.78,3.21508938]
[1763561032345,3.13191455,136.81,136.78,3.21508938]
[1763561032839,0.05191455,136.81,136.78,3.21508938]
[1763561033435,11.90453282,136.85,136.81,3.16]
[1763561033637,3.08,136.87,136.81,3.16]
[1763561033838,3.08,136.86,136.81,3.16]
[1763561034647,3.08,136.83,136.82,0.04913344]
[1763561034842,3.08,136.83,136.81,0.04980904]
[1763561035737,6.5829,136.82,136.81,0.04980904]
[1763561037031,9.6629,136.82,136.81,0.04980904]
[1763561037240,9.6629,136.82,136.72,3.16]
[1763561037241,3.08,136.79,136.72,3.16]
[1763561037637,3.08,136.78,136.72,3.16]
[1763561038347,0.05032098,136.76,136.74,0.05032799]
[1763561039442,0.05032098,136.76,136.74,3.21032799]
[1763561040440,0.05032098,136.76,136.75,3.16]
[1763561040840,9.71602098,136.76,136.74,0.05032799]
[1763561041648,3.13032098,136.76,136.74,0.05032799]
[1763561042147,3.08,136.79,136.74,3.21032799]
[1763561042348,3.08,136.79,136.74,0.05032799]
[1763561042553,3.08,136.77,136.74,0.05032799]
[1763561042747,3.08,136.76,136.74,0.05032799]
[1763561043146,3.13150889,136.76,136.74,0.05032799]
[1763561043343,3.08,136.75,136.74,0.05032799]
[1763561043654,3.08,136.71,136.63,3.16]
[1763561043849,3.08,136.68,136.61,2.03003734]
[1763561044145,3.08,136.58,136.5,22.17811647]
[1763561044340,3.08,136.58,136.51,3.16]
[1763561044540,3.08,136.57,136.5,22.17811647]
[1763561044750,3.1311096,136.55,136.53,0.05530354]
[1763561044947,0.0511096,136.55,136.53,3.21530354]
[1763561045137,3.1311096,136.55,136.53,0.05530354]
[1763561045543,0.0511096,136.55,136.53,0.05530354]
[1763561045945,3.08,136.6,136.53,0.05530354]
[1763561046246,3.08,136.57,136.53,0.05530354]
[1763561046452,3.08,136.61,136.53,3.21530354]
[1763561046847,0.05355625,136.58,136.54,3.16]
[1763561047050,3.08,136.61,136.55,3.21370961]
[1763561047252,3.08,136.61,136.55,0.05370961]
[1763561048046,3.09352373,136.59,136.55,0.05370961]
[1763561048248,0.05352373,136.59,136.55,3.16370961]
[1763561048447,0.05352373,136.59,136.55,6.64920961]
[1763561048645,3.04,136.58,136.55,0.05370961]
[1763561050852,0.05352373,136.59,136.55,3.16370961]
[1763561051049,3.04,136.58,136.55,0.05370961]
[1763561052445,3.04,136.57,136.44,3.11]
[1763561052645,3.04,136.57,136.48,18.69]
[1763561052849,9.6352,136.57,136.48,9.7089]
[1763561053047,9.6352,136.57,136.49,15.6]
[1763561053048,3.04,136.56,136.49,15.6]
[1763561053461,3.04,136.53,136.51,0.04695304]
[1763561053670,3.04,136.5,136.39,3.11]
[1763561053878,3.04,136.5,136.43,15.6]
[1763561054155,9.639,136.49,136.4,3.11]
[1763561054455,3.04,136.48,136.41,15.6]
[1763561054657,0.05080075,136.46,136.43,3.16572148]
[1763561054860,6.5978,136.51,136.45,3.11]
[1763561054861,3.04,136.51,136.45,3.11]
[1763561055054,3.04,136.54,136.45,105.7866]
[1763561055359,3.04,136.54,136.46,102.6692]
[1763561055558,3.04,136.54,136.47,15.62]
[1763561055767,0.05064785,136.52,136.49,0.04930685]
[1763561056053,0.05064785,136.52,136.49,3.15930685]
[1763561056655,0.05064785,136.52,136.5,3.11]
[1763561057159,3.04,136.57,136.5,9.7078]
[1763561057363,3.04,136.57,136.51,18.73]
[1763561057750,3.04,136.61,136.53,3.11]
[1763561057951,3.04,136.61,136.52,102.6223]
[1763561058154,0.04852456,136.58,136.54,3.11]
[1763561058460,0.04852456,136.58,136.55,3.16613079]
[1763561059357,0.04852456,136.58,136.56,15.62]
[1763561060057,3.08852456,136.58,136.52,3.11]
[1763561060259,3.08852456,136.58,136.53,15.62]
[1763561060660,3.08852456,136.58,136.53,18.73]
[1763561060860,3.04,136.57,136.53,15.62]
[1763561061058,3.04,136.57,136.54,0.05055941]
[1763561061762,3.04,136.55,136.54,0.05055941]
[1763561061964,3.04,136.55,136.47,3.11]
[1763561062261,3.04,136.55,136.48,15.64]
[1763561062467,3.04,136.55,136.48,18.75]
[1763561062669,3.04,136.55,136.48,25.3488]
[1763561062855,3.04,136.55,136.49,3.11]
[1763561063059,0.05069137,136.53,136.51,3.16299811]
[1763561063364,0.04945802,136.53,136.51,3.16299811]
[1763561063566,0.04945802,136.53,136.52,15.64]
[1763561063769,0.04945802,136.53,136.52,15.62]
[1763561064154,0.04945802,136.53,136.51,0.05299811]
[1763561064360,3.08945802,136.53,136.51,0.05299811]
[1763561064756,9.68645802,136.53,136.44,3.22]
[1763561064957,3.04,136.52,136.45,15.62]
[1763561065267,3.04,136.52,136.44,3.22]
[1763561065268,3.04,136.52,136.46,15.62]
[1763561065460,3.04,136.52,136.44,3.22]
[1763561065767,3.04,136.52,136.42,6.6018]
[1763561065768,3.04,136.52,136.47,3.22]
[1763561065965,0.04657081,136.49,136.44,3.22]
[1763561066265,0.04657081,136.49,136.45,18.84]
[1763561066472,0.05579738,136.48,136.46,15.62]
[1763561067156,0.05579738,136.48,136.47,3.22]
[1763561067353,3.09579738,136.48,136.41,3.22]
[1763561067960,3.09579738,136.48,136.42,15.62]
[1763561068154,3.09579738,136.48,136.43,15.62]
[1763561068360,3.04,136.47,136.43,15.62]
[1763561068558,3.04,136.47,136.41,3.22]
[1763561068762,3.04,136.47,136.41,15.62]
[1763561070063,3.04,136.47,136.39,3.22]
[1763561070265,3.09088498,136.44,136.4,18.84]
[1763561070563,0.05088498,136.44,136.41,3.22]
[1763561071263,0.05088498,136.44,136.42,18.84]
[1763561071465,3.04,136.43,136.36,105.9619]
[1763561071769,3.04,136.39,136.32,2.03003734]
[1763561072072,0.04640485,136.37,136.28,3.22]
[1763561072364,0.05252369,136.34,136.31,3.22]
[1763561072567,0.05343422,136.34,136.31,3.22]
[1763561072871,1.62,136.44,136.34,3.22]
[1763561073260,1.62,136.47,136.37,3.22]
[1763561073861,0.05230576,136.43,136.41,0.05378645]
[1763561074463,0.05230576,136.43,136.41,3.27378645]
[1763561075574,1.67230576,136.43,136.41,0.05378645]
[1763561076076,0.05230576,136.43,136.41,0.05378645]
[1763561076966,0.05230576,136.43,136.41,3.27378645]
[1763561077867,0.05230576,136.43,136.41,0.05378645]
[1763561078770,6.65420576,136.43,136.41,0.05378645]
[1763561078975,1.62,136.42,136.41,0.05378645]
[1763561079372,6.65420576,136.43,136.41,0.05378645]
[1763561079581,0.05230576,136.43,136.41,3.08378645]
[1763561079877,0.05230576,136.43,136.41,0.05378645]
[1763561081174,1.67230576,136.43,136.41,0.05378645]
[1763561081477,0.05230576,136.43,136.41,0.05378645]
[1763561082066,0.05230576,136.43,136.41,3.08378645]
[1763561082276,0.05230576,136.43,136.41,0.05378645]
[1763561082672,0.05230576,136.43,136.41,3.08378645]
[1763561083371,0.05230576,136.43,136.41,0.05378645]
[1763561083775,0.05230576,136.43,136.41,3.08378645]
[1763561084078,1.62,136.5,136.41,3.08378645]
[1763561084383,1.62,136.48,136.39,3.03]
[1763561084586,6.88693041,136.48,136.39,3.03]
[1763561084769,6.88693041,136.48,136.4,3.03]
[1763561084971,0.04787555,136.45,136.43,3.0844017]
[1763561085573,0.04787555,136.45,136.44,18.69]
[1763561085881,0.04787555,136.45,136.43,15.7144017]
[1763561086076,0.04787555,136.45,136.43,0.0544017]
[1763561087184,0.04787555,136.45,136.43,15.7144017]
[1763561087385,0.04787555,136.45,136.44,3.03]
[1763561088274,0.04787555,136.45,136.43,15.7144017]
[1763561088480,0.04787555,136.45,136.44,3.03]
[1763561089580,5.30547335,136.47,136.45,3.03]
[1763561089777,5.30547335,136.46,136.45,3.03]
[1763561089977,5.30547335,136.49,136.45,3.03]
[1763561090175,5.30547335,136.48,136.45,3.03]
[1763561090377,5.30547335,136.48,136.41,3.03]
[1763561090378,5.30547335,136.47,136.41,3.03]
[1763561090583,0.05312531,136.45,136.43,15.7130546]
[1763561090776,5.35859866,136.45,136.43,0.0530546]
[1763561090976,5.30547335,136.44,136.43,0.0530546]
[1763561091688,0.05312531,136.45,136.43,0.0530546]
[1763561091879,5.35939554,136.45,136.43,3.0830546]
[1763561092183,6.97499994,136.44,136.36,3.03]
[1763561092386,11.92781987,136.43,136.36,3.03]
[1763561092690,5.30499994,136.42,136.38,3.03]
[1763561092886,1.67,136.4,136.34,102.7565]
[1763561093075,0.05500046,136.38,136.36,0.04699174]
[1763561093283,7.0300004,136.38,136.3,3.03]
[1763561093476,1.67,136.36,136.3,3.03]
[1763561093681,6.97499994,136.35,136.3,18.71]
[1763561093897,5.30499994,136.34,136.3,18.71]
[1763561094287,1.67,136.32,136.21,102.855]
[1763561094486,1.67,136.32,136.22,3.03]
[1763561094690,0.05622243,136.28,136.25,3.08616989]
[1763561094892,0.05622243,136.28,136.25,0.05616989]
[1763561095092,0.05622243,136.28,136.24,3.03]
[1763561095390,6.62281993,136.33,136.26,3.03]
[1763561095591,5.29373289,136.32,136.26,3.03]
[1763561095786,1.67,136.34,136.26,3.03]
[1763561095989,109.72766392,136.34,136.26,3.03]
[1763561096178,6.6071,136.32,136.26,3.03]
[1763561096378,1.72039447,136.3,136.28,0.0469339]
[1763561097184,0.05039447,136.3,136.28,0.0469339]
[1763561097391,1.72039447,136.3,136.28,0.0469339]
[1763561097780,8.32849447,136.3,136.28,0.0469339]
[1763561098788,8.32849447,136.3,136.22,9.6415]
[1763561098789,6.6091,136.28,136.22,3.03]
[1763561099086,104.4706,136.29,136.22,3.03]
[1763561099489,8.2796,136.27,136.22,3.03]
[1763561099686,1.67,136.3,136.23,15.7]
[1763561099891,0.05477468,136.28,136.23,18.73]
[1763561100091,1.72477468,136.28,136.2,3.03]
[1763561100392,1.71938716,136.25,136.19,15.7]
[1763561100598,0.04938716,136.25,136.2,3.03]
[1763561100995,419.65210882,136.36,136.26,3.03]
[1763561100996,1.67,136.36,136.26,3.03]
[1763561101194,102.7225,136.39,136.29,3.03]
[1763561101399,102.7006,136.42,136.32,3.03]
[1763561101591,6.6032,136.4,136.33,18.75]
[1763561101791,6.6032,136.4,136.34,15.72]
[1763561101998,0.05257291,136.38,136.36,3.08272764]
[1763561102696,0.05257291,136.38,136.36,0.05272764]
[1763561103692,6.65677291,136.38,136.36,0.05272764]
[1763561104090,0.05257291,136.38,136.36,3.08272764]
[1763561104784,0.05257291,136.38,136.36,18.80272764]
[1763561104984,0.05257291,136.38,136.37,3.03]
[1763561105384,1.67,136.45,136.37,3.03]
[1763561105790,6.6018,136.43,136.37,3.03]
[1763561106193,102.6624,136.47,136.37,3.03]
[1763561106389,6.6008,136.45,136.39,3.03]
[1763561106590,0.04653263,136.43,136.41,3.07778036]
[1763561107089,0.04653263,136.43,136.41,0.04778036]
[1763561107290,0.04653263,136.43,136.42,3.03]
[1763561107498,102.6544,136.48,136.42,3.03]
[1763561107690,104.3235,136.49,136.42,18.75]
[1763561107890,6.5999,136.47,136.42,18.75]
[1763561108092,6.5999,136.47,136.43,3.1]
[1763561108492,0.05133515,136.46,136.44,0.05271858]
[1763561110201,0.05133515,136.46,136.44,3.15271858]
[1763561111196,6.5978,136.51,136.44,3.15271858]
[1763561111390,1.67,136.47,136.44,15.75271858]
[1763561111893,8.2703,136.46,136.44,0.05271858]
[1763561112396,0.0542645,136.46,136.44,0.05271858]
[1763561112701,0.0542645,136.46,136.44,3.15271858]
[1763561114902,0.0542645,136.46,136.45,18.8]
[1763561115998,0.0542645,136.46,136.44,0.05271858]
[1763561116198,1.7242645,136.46,136.41,3.1]
[1763561116599,1.67,136.41,136.33,3.1]
[1763561116798,104.3805,136.41,136.33,18.82]
[1763561117305,0.05305332,136.38,136.36,0.04695672]
[1763561117705,0.05305332,136.38,136.36,3.14695672]
[1763561118404,1.67,136.45,136.36,3.14695672]
[1763561118602,1.67,136.45,136.36,3.1]
[1763561118798,1.67,136.44,136.36,18.82]
[1763561119002,104.3573,136.44,136.36,18.82]
[1763561119409,0.05480817,136.41,136.39,0.04863561]
[1763561119906,6.65750817,136.41,136.39,0.04863561]
[1763561120802,0.05480817,136.41,136.39,0.04863561]
[1763561121007,0.05480817,136.41,136.39,3.14863561]
[1763561121706,0.05480817,136.41,136.39,18.86863561]
[1763561122409,6.6004,136.46,136.4,3.1]
[1763561122798,104.3292,136.48,136.4,3.1]
[1763561123200,104.3292,136.48,136.41,15.72]
[1763561123400,0.05641904,136.46,136.43,0.05026111]
[1763561123804,6.65681904,136.46,136.43,0.05026111]
[1763561124007,1.72641904,136.46,136.43,0.05026111]
[1763561124208,1.67,136.45,136.43,0.05026111]
[1763561124609,102.72861904,136.46,136.43,0.05026111]
[1763561124909,6.6008,136.45,136.43,0.05026111]
[1763561126308,1.67,136.4,136.34,1.38]
[1763561126518,1.67,136.38,136.34,1.38]
[1763561127107,8.2751,136.36,136.34,1.38]
[1763561127308,1.67,136.35,136.34,0.04719495]
[1763561127609,1.67,136.35,136.26,3.17]
[1763561127610,1.67,136.33,136.26,3.17]
[1763561127797,1.67,136.33,136.26,18.89]
[1763561128006,1.67,136.33,136.26,3.17]
[1763561128413,6.65958852,136.31,136.28,0.04796258]
[1763561128609,0.05208852,136.31,136.28,3.21796258]
[1763561129316,0.05208852,136.31,136.28,0.04796258]
[1763561130011,6.65958852,136.31,136.28,0.04796258]
[1763561130213,0.05208852,136.31,136.28,0.04796258]
[1763561130512,0.05208852,136.31,136.28,3.21796258]
[1763561133107,0.05208852,136.31,136.28,0.04796258]
[1763561134014,6.608,136.3,136.28,0.04796258]
[1763561134904,8.278,136.3,136.28,0.04796258]
[1763561136410,1.67,136.29,136.24,3.17]
[1763561137712,0.05578013,136.28,136.25,0.05294678]
[1763561137910,6.6095,136.27,136.25,0.05294678]
[1763561138105,8.2895,136.27,136.25,0.05294678]
[1763561138520,1.68,136.26,136.25,0.05294678]
[1763561138713,8.2895,136.27,136.25,0.05294678]
[1763561139123,6.6095,136.27,136.25,0.05294678]
[1763561139314,8.2895,136.27,136.25,0.05294678]
[1763561139515,0.05578013,136.28,136.25,0.05294678]
[1763561139913,1.68,136.27,136.25,0.05294678]
[1763561140219,8.2894,136.27,136.25,0.05294678]
[1763561141009,1.68,136.27,136.25,0.05294678]
[1763561141921,8.2894,136.27,136.25,0.05294678]
[1763561142321,1.68,136.26,136.25,0.05294678]
[1763561142517,6.6094,136.27,136.25,0.05294678]
[1763561142820,8.2894,136.27,136.25,0.05294678]
[1763561144319,6.6094,136.27,136.25,0.05294678]
[1763561144824,0.05578013,136.28,136.25,0.05294678]
[1763561145018,0.05578013,136.28,136.25,3.21294678]
[1763561145711,0.05578013,136.28,136.25,0.05294678]
[1763561146223,0.05578013,136.28,136.25,3.21294678]
[1763561148219,6.66468013,136.28,136.25,3.21294678]
[1763561150218,0.05578013,136.28,136.25,3.21294678]
[1763561150827,6.66468013,136.28,136.25,3.21294678]
[1763561153013,6.66468013,136.28,136.25,0.05294678]
[1763561153014,6.6094,136.27,136.25,0.05294678]
[1763561153220,1.68,136.26,136.25,0.05294678]
[1763561153436,6.6093,136.27,136.25,0.05294678]
[1763561154329,6.6098,136.26,136.25,0.05294678]